[Event "7th Sharjah Masters 2024"]
[Site "Sharjah"]
[Date "2024.05.22"]
[Round "9.21"]
[White "Fedoseev, Vladimir"]
[Black "Erdogmus, Yagiz Kaan"]
[Result "1/2-1/2"]
[ECO "A20"]
[WhiteElo "2702"]
[BlackElo "2554"]
[Annotator "RC"]
[PlyCount "178"]
[EventDate "2024.05.13"]
[EventType "swiss"]
[EventCountry "UAE"]
[SourceTitle "playchess.com"]
[Source "ChessBase"]
[SourceQuality "1"]
[TimeControl "5400+30"]

1. c4 {[%emt 1:31:00]} e5 {[%emt 1:31:00]} 2. g3 {[%emt 0:00:30]} d5 3. cxd5 {[%emt 0:00:30]} Qxd5 {[%emt 0:01:00]} 4. Nf3 {[%emt 0:00:30]} Nc6 {[%emt 0:00:30]} 5. Nc3 {[%emt 0:00:30]} Qd6 {[%emt 0:00:30]} 6. Qc2 {[%emt 0:00:30]} Qg6 {[%emt 0:00:30]} 7. d3 {[%emt 0:00:30]} Bd6 {[%emt 0:00:30]} 8. Bg2 {[%emt 0:00:30]} Nge7 {[%emt 0:00:30]} 9. Bg5 {[%emt 0:00:30]} O-O {[%emt 0:00:30]} 10. Bxe7 {[%emt 0:00:30]} Bxe7 {[%emt 0:00:30]} 11. O-O {[%emt 0:00:30]} Bg4 {[%emt 0:00:30]} 12. Qa4 {[%emt 0:00:30]} Rfd8 {[%emt 0:00:30]} 13. h3 {[%emt 0:00:30]} Bd7 {[%emt 0:00:30]} 14. Qb5 {[%emt 0:00:30]} a6 {[%emt 0:00:30]} 15. Qb3 {[%emt 0:00:30]} Rab8 {[%emt 0:00:30]} 16. Rac1 {[%emt 0:00:30]} Be6 {[%emt 0:00:30]} 17. Qa4 Qh6 {[%emt 0:00:30]} 18. h4 {[%emt 0:01:00]} Nd4 {[%emt 0:00:30]} 19. Qa5 {[%emt 0:00:30]} Nc6 {[%emt 0:00:30]} 20. Qxc7 {[%emt 0:00:30]} Bc5 {[%emt 0:00:30]} 21. Ne4 {[%emt 0:00:30]} Rdc8 {[%emt 0:00:30]} 22. Qxc8+ {[%emt 0:00:30]} Rxc8 {[%emt 0:00:30]} 23. Nxc5 {[%emt 0:00:30]} Nb4 {[%emt 0:00:30]} 24. d4 {[%emt 0:00:30]} exd4 {[%emt 0:00:30]} 25. Nxd4 {[%emt 0:00:30]} Nxa2 {[%emt 0:00:30]} 26. Rc2 {[%emt 0:00:30]} b6 {[%emt 0:00:30]} 27. Ne4 {[%emt 0:00:30]} Rxc2 {[%emt 0:00:30]} 28. Nxc2 {[%emt 0:00:30]} Qh5 {[%emt 0:00:30]} 29. Rd1 {[%emt 0:00:30]} h6 {[%emt 0:00:30]} 30. Rd8+ {[%emt 0:00:30]} Kh7 {[%emt 0:00:30]} 31. Nd4 {[%emt 0:00:30]} Qe5 {[%emt 0:00:30]} 32. Rd6 {[%emt 0:00:30]} Bc4 {[%emt 0:00:30]} 33. Nf3 {[%emt 0:00:30]} Qe8 {[%emt 0:00:30]} 34. Nd4 {[%emt 0:00:30]} Nc1 {[%emt 0:00:30]} 35. e3 {[%emt 0:00:30]} Ne2+ {[%emt 0:00:30]} 36. Nxe2 {[%emt 0:00:30]} Bxe2 {[%emt 0:00:30]} 37. Nc3 {[%emt 0:00:30]} Bc4 {[%emt 0:00:30]} 38. Rxb6 {[%emt 0:00:30]} Qe5 {[%emt 0:00:30]} 39. Rc6 {[%emt 0:00:30]} Bd3 {[%emt 0:00:30]} 40. Bd5 {[%emt 0:00:30]} Qf5 {[%emt 0:00:30]} 41. Rxa6 {[%emt 0:00:30]} Qh3 {[%emt 0:00:30]} 42. Ra1 {[%emt 0:00:30]} Qf5 {[%emt 0:00:30]} 43. Ra4 {[%emt 0:00:30]} Qh3 {[%emt 0:00:30]} 44. Bg2 {[%emt 0:00:30]} Qe6 {[%emt 0:00:30]} 45. Rd4 {[%emt 0:00:30]} Bg6 {[%emt 0:00:30]} 46. Bf3 {[%emt 0:00:30]} Qb3 {[%emt 0:00:30]} 47. h5 {[%emt 0:00:30]} Bf5 {[%emt 0:00:30]} 48. Rd5 {[%emt 0:00:30]} g6 {[%emt 0:00:30]} 49. Rb5 {[%emt 0:00:30]} Qc2 {[%emt 0:00:30]} 50. Kg2 {[%emt 0:00:30]} Kg7 {[%emt 0:00:30]} 51. hxg6 {[%emt 0:00:30]} Bxg6 {[%emt 0:00:30]} 52. Rb4 {[%emt 0:00:30]} Qc1 {[%emt 0:00:30]} 53. Ne2 {[%emt 0:00:30]} Qe1 {[%emt 0:00:30]} 54. Rd4 Qb1 {[%emt 0:00:30]} 55. b4 {[%emt 0:01:00]} Bd3 {[%emt 0:00:30]} 56. g4 {[%emt 0:00:30]} Kf8 {[%emt 0:00:30]} 57. Ng3 {[%emt 0:00:30]} Bg6 {[%emt 0:00:30]} 58. Bc6 {[%emt 0:00:30]} Kg8 {[%emt 0:00:30]} 59. Rf4 {[%emt 0:00:30]} Kg7 {[%emt 0:00:30]} 60. Bd5 {[%emt 0:00:30]} Qd1 {[%emt 0:00:30]} 61. Bc4 {[%emt 0:00:30]} Qd7 {[%emt 0:00:30]} 62. Kh2 {[%emt 0:00:30]} Qc7 {[%emt 0:00:30]} 63. Be2 {[%emt 0:00:30]} Qc2 {[%emt 0:00:30]} 64. Kg2 {[%emt 0:00:30]} Qb2 {[%emt 0:00:30]} 65. b5 {[%emt 0:00:30]} Qe5 {[%emt 0:00:30]} 66. b6 {[%emt 0:00:30]} Qb2 {[%emt 0:00:30]} 67. Bc4 {[%emt 0:00:30]} Qxb6 {[%emt 0:00:30]} 68. Nf5+ {[%emt 0:00:30]} Bxf5 {[%emt 0:00:30]} 69. Rxf5 {[%emt 0:00:30]} f6 {[%emt 0:00:30]} 70. Be2 {[%emt 0:00:30]} Qe6 {[%emt 0:00:30]} 71. Bf3 {[%emt 0:00:30]} Qc4 {[%emt 0:00:30]} 72. Rf4 {[%emt 0:00:30]} Qc5 {[%emt 0:00:30]} 73. Rd4 {[%emt 0:00:30]} Qb5 {[%emt 0:00:30]} 74. Rd5 {[%emt 0:00:30]} Qe8 {[%emt 0:00:30]} 75. Ra5 {[%emt 0:00:30]} Qb8 {[%emt 0:00:30]} 76. Be4 {[%emt 0:00:30]} Qb6 {[%emt 0:00:30]} 77. Rd5 {[%emt 0:00:30]} Qe6 {[%emt 0:00:30]} 78. Kf3 {[%emt 0:00:30]} Qe7 {[%emt 0:00:30]} 79. Rb5 {[%emt 0:00:30]} Qd6 {[%emt 0:00:30]} 80. Rb7+ {[%emt 0:00:30]} Kg8 {[%emt 0:00:30]} 81. Kg2 {[%emt 0:00:30]} Qe6 {[%emt 0:00:30]} 82. Bf3 {[%emt 0:00:30]} Qd6 {[%emt 0:00:30]} 83. Ra7 {[%emt 0:00:30]} Qe6 {[%emt 0:00:30]} 84. Rc7 {[%emt 0:00:30]} Qd6 {[%emt 0:00:30]} 85. Rc8+ {[%emt 0:00:30]} Kg7 {[%emt 0:00:30]} 86. Be4 {[%emt 0:00:30]} h5 {[%emt 0:00:30]} 87. gxh5 {[%emt 0:00:30]} Qd7 {[%emt 0:00:30]} 88. h6+ {[%emt 0:00:30]} Kf7 {[%emt 0:00:30]} 89. Rc4 {[%emt 0:00:30]} Qg4+ {[%emt 0:00:30]} 1/2-1/2

[Event "7th Sharjah Masters 2024"]
[Site "Sharjah"]
[Date "2024.05.22"]
[Round "9.22"]
[White "Martirosyan, Haik M."]
[Black "Assaubayeva, Bibisara"]
[Result "1-0"]
[ECO "E73"]
[WhiteElo "2679"]
[BlackElo "2481"]
[Annotator "TA"]
[PlyCount "51"]
[EventDate "2024.05.13"]
[EventType "swiss"]
[EventCountry "UAE"]
[SourceTitle "playchess.com"]
[Source "ChessBase"]
[SourceQuality "1"]
[TimeControl "5400+30"]

{[%evp 12,51,53,38,60,31,42,25,13,37,84,92,77,64,130,117,151,122,129,110,111,116,186,187,167,173,297,233,235,164,264,298,305,301,321,250,1067,1038,1343,1289,3101,2835]} 1. d4 {[%emt 1:31:00]} Nf6 {[%emt 1:31:00]} 2. c4 {[%emt 0:00:30]} g6 {[%emt 0:00:30]} 3. Nc3 {[%emt 0:00:30]} Bg7 {[%emt 0:00:30]} 4. e4 {[%emt 0:00:30]} d6 {[%emt 0:00:30]} 5. Be2 {[%emt 0:00:30]} O-O {[%emt 0:00:30]} 6. Be3 {[%emt 0:00:30]} c5 {[%emt 0:00:30]} 7. d5 {[%emt 0:00:30]} (7. dxc5 Qa5 8. Bd2 (8. cxd6 Nxe4 9. dxe7 Re8 $16) 8... Qxc5 $11) 7... Qb6 {[%emt 0:00:30]} 8. Qc2 {[%emt 0:00:30]} Ng4 {[%emt 0:00:30]} 9. Bg5 {[%emt 0:00:30]} f5 {[%emt 0:00:30] White has an edge.} 10. f3 {[%emt 0:00:30]} Nf6 {[%emt 0:00:30]} (10... Ne5 $14 {should be considered.}) 11. exf5 $16 {[%emt 0:00:30]} Bxf5 {[%emt 0:00:30]} 12. Qd2 {[%emt 0:00:30]} Qa5 {[%emt 0:00:30]} (12... Bc8 $14) 13. g4 {[%emt 0:00:30][%cal Bg2g4,Bg4h5,Bh5h6][%mdl 32]} Bd7 {[%emt 0:00:30]} 14. h4 {[%emt 0:00:30]} b5 {[%emt 0:00:30]} 15. h5 {[%emt 0:00:30]} (15. cxb5 a6) 15... gxh5 {[%emt 0:00:30]} 16. gxh5 {[%emt 0:00:30]} Na6 {[%emt 0:00:30]} (16... Ne8 $16) 17. h6 $18 {[%emt 0:00:30]} ({Don't play} 17. Nxb5 $6 Qxd2+ 18. Bxd2 h6 $14) 17... Bh8 {[%emt 0:00:30]} 18. Nh3 {[%emt 0:00:30][%cal Oh1g1]} ({Don't take} 18. Nxb5 Qxd2+ 19. Bxd2 (19. Kxd2 Bxb5 20. cxb5 Nc7 $16) 19... Nb4 $16) 18... Rab8 {[%emt 0:00:30]} (18... Kf7 {was called for.} 19. Nxb5 (19. cxb5 Nc7 $18) 19... Nb4) 19. cxb5 {[%emt 0:00:30]} Nc7 {[%emt 0:00:30]} 20. a4 {[%emt 0:00:30]} a6 {[%emt 0:00:30]} (20... Kf7 $142 21. Bd3 Ke8) 21. Rg1 {[%emt 0:00:30]} Kf7 {[%emt 0:00:30] [#]} 22. Bxf6 $1 {[%emt 0:00:30]} exf6 {[%emt 0:00:30][%cal Be7f6,Bf6f5][%mdl 32]} 23. Qd3 {[%emt 0:00:30][%csl LRa6,LRh7]} Ke8 $2 {[%emt 0:00:30] [#]} (23... f5) 24. Qxh7 $1 {[%emt 0:00:30] White is clearly winning.} f5 {[%emt 0:00:30] [#]} (24... Nxd5 25. Rg8) 25. Rg7 $1 {[%emt 0:00:30]} Nxd5 {[%emt 0:00:30]} (25... Kd8 26. Rxd7+) 26. Qg6+ {[%emt 0:00:30] Black got outplayed after the opening.   Weighted Error Value: White=0.15 (very precise) /Black=0.43.  Mistake:       	---       	Black=6      Inaccurate:     	White=2     	---        OK:         	White=6     	Black=5      Best:        	White=2     	---        Strong:       	White=1     	---} 1-0

[Event "7th Sharjah Masters 2024"]
[Site "Sharjah"]
[Date "2024.05.22"]
[Round "9.23"]
[White "Sadhwani, Raunak"]
[Black "Sanal, Vahap"]
[Result "1/2-1/2"]
[ECO "E16"]
[WhiteElo "2654"]
[BlackElo "2566"]
[Annotator "TA"]
[PlyCount "74"]
[EventDate "2024.05.13"]
[EventType "swiss"]
[EventCountry "UAE"]
[SourceTitle "playchess.com"]
[Source "ChessBase"]
[SourceQuality "1"]
[TimeControl "5400+30"]

{[%evp 13,74,19,20,0,0,0,0,-7,0,0,0,-18,0,-11,0,0,0,-11,62,0,21,21,26,20,19,19,25,16,41,27,45,39,41,39,36,44,46,24,29,31,31,13,19,26,33,33,34,34,34,34,33,0,0,0,0,0,0,0,0,0,0,0,0]} 1. d4 {[%emt 0:05:17]} Nf6 {[%emt 0:00:14]} 2. c4 {[%emt 0:00:06]} e6 {[%emt 0:00:47]} 3. Nf3 {[%emt 0:00:06]} b6 {[%emt 0:00:07]} 4. g3 {[%emt 0:00:29]} Bb7 {[%emt 0:00:08]} 5. Bg2 {[%emt 0:00:05]} Bb4+ {[%emt 0:00:07]} 6. Bd2 {[%emt 0:04:41]} Bxd2+ {[%emt 0:00:09]} 7. Nbxd2 {[%emt 0:01:20]} O-O $1 {[%emt 0:00:18]} 8. Qc2 {[%emt 0:01:40]} c5 {[%emt 0:01:36]} 9. dxc5 {[%emt 0:02:30]} bxc5 {[%emt 0:00:07]} 10. O-O {[%emt 0:00:05]} Nc6 {[%emt 0:01:01]} 11. Rfd1 {[%emt 0:03:40]} Qe7 {[%emt 0:03:00]} 12. Rac1 {[%emt 0:00:30]} Rfd8 {[%emt 0:01:16]} 13. Ne4 {[%emt 0:08:39]} Nb4 {[%emt 0:03:24]} 14. Nxf6+ {[%emt 0:05:44]} Qxf6 {[%emt 0:00:06]} 15. Qb1 {[%emt 0:00:19]} d6 {[%emt 0:09:24] [#]} (15... Rab8 $11) 16. Ng5 {[%emt 0:17:33]} Qxg5 {[%emt 0:08:06]} (16... Bxg2 $5 17. Qxh7+ (17. Nxh7 $2 {is the wrong capture.} Qh6 $19) 17... Kf8 $11) 17. Bxb7 {[%emt 0:07:30]} Rab8 {[%emt 0:00:02]} 18. Bg2 {[%emt 0:00:20]} Rb6 {[%emt 0:05:58]} 19. Rc3 {[%emt 0:01:08][%cal Bc1c3,Bc3a3,Ba3a5][%mdl 32]} Qf6 {[%emt 0:01:50]} 20. Ra3 {[%emt 0:00:38]} Rd7 {[%emt 0:02:24]} 21. Rd2 {[%emt 0:00:59]} g6 {[%emt 0:03:37]} 22. Qd1 {[%emt 0:01:51]} Qd8 {[%emt 0:02:49]} 23. Ra5 {[%emt 0:04:18][%cal Oa5c5] Black is weak on the light squares} Qc7 {[%emt 0:08:25]} 24. Qa4 {[%emt 0:04:14]} Re7 {[%emt 0:00:33]} 25. h4 {[%emt 0:07:03]} h5 {[%emt 0:08:30]} 26. e3 {[%emt 0:00:36]} Kg7 {[%emt 0:02:04]} 27. b3 {[%emt 0:02:59]} Kg8 {[%emt 0:04:27]} 28. Kf1 {[%emt 0:03:16]} e5 {[%emt 0:05:39]} 29. a3 {[%emt 0:02:49]} Nc6 {[%emt 0:01:14]} 30. Bxc6 {[%emt 0:02:05]} Qxc6 {[%emt 0:00:10]} 31. Qxc6 {[%emt 0:00:05]} ({Don't play} 31. Rxa7 Rxa7 32. Qxa7 Rxb3 $17 (32... Qh1+ 33. Ke2 $17)) 31... Rxc6 $14 {[%emt 0:00:04][%mdl 4096] Endgame. KRR-KRR} 32. Rb5 {[%emt 0:00:03]} Kf8 {[%emt 0:01:08] The position is equal.} 33. Ke2 {[%emt 0:01:20]} a6 {[%emt 0:01:01]} 34. Rb8+ {[%emt 0:00:06]} Re8 {[%emt 0:00:02]} 35. Rb7 {[%emt 0:00:41]} Re7 {[%emt 0:00:02]} 36. Rb8+ {[%emt 0:00:06]} Re8 {[%emt 0:00:02]} 37. Rb7 {[%emt 0:00:05]} Re7 {[%emt 0:00:07] Weighted Error Value: White=0.08 (flawless) /Black=0.10 (very precise) .  Mistake:       	White=1     	Black=1      Inaccurate:     	White=1     	---        OK:         	White=10    	Black=11     Best:        	White=1     	Black=2} 1/2-1/2

[Event "7th Sharjah Masters 2024"]
[Site "Sharjah"]
[Date "2024.05.22"]
[Round "9.24"]
[White "Adhiban, B.."]
[Black "Yuffa, Daniil"]
[Result "1/2-1/2"]
[ECO "B88"]
[WhiteElo "2523"]
[BlackElo "2617"]
[Annotator "TA"]
[PlyCount "120"]
[EventDate "2024.05.13"]
[EventType "swiss"]
[EventCountry "UAE"]
[SourceTitle "playchess.com"]
[Source "ChessBase"]
[SourceQuality "1"]
[TimeControl "5400+30"]

{[%evp 19,120,0,0,0,0,0,22,17,10,7,10,1,33,11,36,25,32,14,11,0,0,0,0,-33,-37,-17,-17,-20,-25,-25,-41,-29,-21,-13,-16,-24,0,-8,-7,-10,100,100,101,90,118,112,120,104,115,115,78,57,73,8,8,8,8,25,16,15,27,8,8,0,0,0,0,0,0,0,0,0,0,0,0,0,0,0,0,0,0,0,0,0,0,0,0,0,0,0,0,0,0,0,0,0,0,0,0,0,0,0,0]} 1. e4 {[%emt 0:00:02]} c5 {[%emt 0:00:24]} 2. Nf3 {[%emt 0:00:04]} d6 {[%emt 0:00:09]} 3. d4 {[%emt 0:00:03]} cxd4 {[%emt 0:00:07]} 4. Nxd4 {[%emt 0:00:02]} Nf6 {[%emt 0:00:12]} 5. Nc3 {[%emt 0:00:03]} a6 {[%emt 0:00:09]} 6. Bc4 {[%emt 0:00:04]} e6 {[%emt 0:00:07]} 7. Be3 {[%emt 0:00:04]} Nc6 {[%emt 0:04:17]} 8. a4 {[%emt 0:09:59]} Bd7 {[%emt 0:01:18]} 9. O-O {[%emt 0:00:11]} Be7 {[%emt 0:00:40]} 10. Qe2 {[%emt 0:01:31]} O-O {[%emt 0:00:59]} 11. Nxc6 {[%emt 0:00:53]} Bxc6 {[%emt 0:00:06]} 12. a5 {[%emt 0:00:08]} Qe8 {[%emt 0:06:51]} (12... Bxe4 $2 13. Nxe4 (13. Bb6 Qc8 $18) 13... Nxe4 14. Bb6 $18) 13. f3 {[%emt 0:03:00]} d5 {[%emt 0:14:29]} 14. exd5 {[%emt 0:00:07]} exd5 {[%emt 0:03:03]} 15. Bb3 {[%emt 0:11:57]} Bb4 {[%emt 0:04:44][%cal Od5d4]} 16. Qf2 {[%emt 0:01:16]} Qe7 {[%emt 0:06:53]} 17. Bd4 {[%emt 0:01:15]} Rfe8 {[%emt 0:03:58]} 18. Qh4 {[%emt 0:09:25]} Bc5 {[%emt 0:02:35]} 19. Qf2 {[%emt 0:01:02]} Bxd4 {[%emt 0:02:35]} 20. Qxd4 {[%emt 0:00:04]} Qc7 {[%emt 0:00:14]} 21. Qb6 {[%emt 0:09:15]} Qxb6+ {[%emt 0:09:04]} 22. axb6 {[%emt 0:00:04]} d4 {[%emt 0:00:20]} 23. Na4 {[%emt 0:06:04]} Rad8 {[%emt 0:03:07]} 24. Rfd1 {[%emt 0:02:22]} Re5 {[%emt 0:06:35]} 25. Bc4 {[%emt 0:02:29]} Ra5 {[%emt 0:13:17]} 26. b3 {[%emt 0:00:14]} Rd6 {[%emt 0:00:36]} 27. c3 {[%emt 0:10:12]} Bxa4 {[%emt 0:01:29]} 28. Rxd4 {[%emt 0:01:08]} Rxd4 {[%emt 0:01:56]} (28... Rxb6 $2 29. Rd8+ (29. Rxa4 Re5 $14) (29. bxa4 Kf8 $14) 29... Ne8 30. Re1 $18 (30. Rxa4 Re5 $16)) 29. cxd4 {[%emt 0:00:02] [#]} Nd7 {[%emt 0:01:30]} 30. bxa4 $16 {[%emt 0:06:51]} Nxb6 {[%emt 0:00:27][%mdl 4096] Endgame. KRB-KRN} 31. Bb3 {[%emt 0:00:07]} Kf8 {[%emt 0:01:42] [#]} 32. Rc1 $1 {[%emt 0:00:26]} Nxa4 {[%emt 0:01:19]} 33. Rc7 {[%emt 0:00:12][%csl LRb7,LRf7]} f5 {[%emt 0:07:00]} 34. Rf7+ {[%emt 0:07:37]} (34. Rxb7 Rb5 35. Rf7+ Ke8 $16) 34... Ke8 {[%emt 0:00:03]} 35. Rxb7 {[%emt 0:00:05] White is much more active.} g5 {[%emt 0:00:13]} 36. Bxa4+ {[%emt 0:08:18]} ({White should play} 36. Rxh7 $16 {Threatens to win with Rh5.} Nc3 37. h4 gxh4 38. Rh8+ (38. Rxh4 f4 $16) 38... Ke7 39. Rxh4) 36... Rxa4 $11 {[%emt 0:00:05]} 37. Rxh7 {[%emt 0:00:06]} Rxd4 $16 {[%emt 0:00:54] KR-KR} 38. Rh5 {[%emt 0:00:06]} Rd1+ {[%emt 0:01:35]} 39. Kf2 {[%emt 0:00:02]} Rd2+ {[%emt 0:00:16]} 40. Kg3 {[%emt 0:00:22]} Rd5 {[%emt 0:00:56] The position is equal.} ({Wrong is} 40... f4+ $2 41. Kh3 $16) 41. h4 {[%emt 0:02:11]} (41. Rxg5 f4+ 42. Kxf4 Rxg5 43. Kxg5 a5 $19) 41... gxh4+ {[%emt 0:00:57]} 42. Kxh4 {[%emt 0:00:11]} a5 {[%emt 0:04:19]} 43. Rh7 {[%emt 0:00:27]} Rd7 {[%emt 0:00:00]} 44. Rh8+ {[%emt 0:00:09]} Ke7 {[%emt 0:00:00]} 45. Ra8 {[%emt 0:01:43]} Rd5 {[%emt 0:00:00]} 46. Kg5 {[%emt 0:01:09]} Kd7 {[%emt 0:00:00]} 47. Kf4 {[%emt 0:02:00]} Kc6 {[%emt 0:00:00]} 48. g4 {[%emt 0:00:08] Strongly threatening g5.} fxg4 {[%emt 0:00:00]} 49. fxg4 {[%emt 0:00:03]} Kb5 {[%emt 0:00:01]} 50. g5 {[%emt 0:00:13]} Rd1 {[%emt 0:01:01]} 51. g6 {[%emt 0:00:05] White wants to mate with g7.} Rg1 {[%emt 0:00:03]} 52. Kf5 {[%emt 0:00:14]} a4 {[%emt 0:00:09]} 53. Kf6 {[%emt 0:00:31]} Kb4 {[%emt 0:00:19]} 54. g7 {[%emt 0:00:04]} a3 {[%emt 0:00:43]} 55. g8=Q {[%emt 0:00:18]} Rxg8 {[%emt 0:00:05]} 56. Rxg8 {[%emt 0:00:03]} a2 {[%emt 0:00:12]} 57. Ra8 {[%emt 0:00:02]} Kb3 {[%emt 0:00:04]} 58. Ke5 {[%emt 0:00:03]} Kb2 {[%emt 0:00:03]} 59. Ke4 {[%emt 0:00:03]} a1=Q {[%emt 0:00:07]} 60. Rxa1 {[%emt 0:00:01]} Kxa1 {[%emt 0:00:01] Weighted Error Value: White=0.06 (flawless) /Black=0.07 (flawless) .  Mistake:       	White=1     	Black=1      Inaccurate:     	White=1     	Black=2      OK:         	White=15    	Black=25     Best:        	White=1     	Black=6      Strong:       	White=1     	---} 1/2-1/2

[Event "7th Sharjah Masters 2024"]
[Site "Sharjah"]
[Date "2024.05.22"]
[Round "9.25"]
[White "Nesterov, Arseniy"]
[Black "Kuybokarov, Temur"]
[Result "1-0"]
[ECO "D12"]
[WhiteElo "2590"]
[BlackElo "2602"]
[Annotator "TA"]
[PlyCount "69"]
[EventDate "2024.05.13"]
[EventType "swiss"]
[EventCountry "UAE"]
[SourceTitle "playchess.com"]
[Source "ChessBase"]
[SourceQuality "1"]
[TimeControl "5400+30"]

{[%evp 11,69,16,32,11,28,26,35,24,48,24,60,0,0,0,0,-3,25,14,18,14,30,30,30,17,14,13,31,39,35,35,38,25,32,24,26,21,30,16,34,14,55,61,65,39,79,75,92,87,79,83,83,79,79,79,174,153,234,193,222,208]} 1. Nf3 {[%emt 0:00:02]} Nf6 {[%emt 0:00:23]} 2. c4 {[%emt 0:00:06]} c6 {[%emt 0:00:54]} 3. Nc3 {[%emt 0:00:56]} d5 {[%emt 0:00:05]} 4. e3 {[%emt 0:00:36]} Bf5 {[%emt 0:00:39]} 5. d4 {[%emt 0:00:28]} e6 {[%emt 0:00:29]} 6. Nh4 {[%emt 0:02:32]} Bg6 {[%emt 0:00:22]} 7. Be2 {[%emt 0:00:44]} Nbd7 {[%emt 0:02:06]} 8. O-O {[%emt 0:00:31]} Bd6 {[%emt 0:01:20]} 9. g3 {[%emt 0:00:21] White is slightly better.} Qe7 {[%emt 0:03:34]} 10. Bd2 {[%emt 0:10:30]} Ne4 {[%emt 0:09:20]} 11. a3 {[%emt 0:15:34]} (11. Nxe4 $14 Bxe4 12. f3) 11... Nxd2 $11 {[%emt 0:15:31]} 12. Qxd2 {[%emt 0:00:11]} dxc4 {[%emt 0:02:26]} 13. Bxc4 {[%emt 0:00:37]} Nb6 {[%emt 0:01:00]} 14. Be2 {[%emt 0:01:26]} Nd5 {[%emt 0:02:41]} 15. Bf3 {[%emt 0:02:18]} Nxc3 {[%emt 0:04:43]} 16. Qxc3 {[%emt 0:13:28][%cal Of3c6] And now Bxc6+! would win.} O-O {[%emt 0:00:25]} 17. Nxg6 {[%emt 0:01:15]} hxg6 {[%emt 0:00:08]} 18. Kg2 {[%emt 0:00:31]} e5 {[%emt 0:04:21]} 19. h4 {[%emt 0:01:10]} exd4 {[%emt 0:00:55]} 20. exd4 {[%emt 0:00:06]} Qf6 {[%emt 0:05:15]} 21. Rfe1 {[%emt 0:02:49]} Rfe8 {[%emt 0:01:46]} 22. Rad1 {[%emt 0:00:46][%cal Ba1d1,Bd1d3,Bd3e3,Be3f3][%mdl 32]} Rad8 {[%emt 0:02:06]} 23. Qc4 {[%emt 0:00:49]} Re7 {[%emt 0:02:05]} 24. Rxe7 {[%emt 0:00:16]} Qxe7 {[%emt 0:01:03]} 25. Rd3 {[%emt 0:01:53]} Re8 {[%emt 0:04:51]} 26. Qa4 {[%emt 0:02:14]} Ra8 {[%emt 0:04:36]} 27. Re3 {[%emt 0:02:11]} Qf6 {[%emt 0:01:05]} 28. Bd1 {[%emt 0:02:15][%cal Bf3d1,Bd1b3,Bb3f7,Bf7d5][%mdl 32]} Qf5 {[%emt 0:08:13] [#]} 29. Rf3 $1 {[%emt 0:05:04]} Qb5 {[%emt 0:04:46]} 30. Qxb5 {[%emt 0:01:20]} cxb5 {[%emt 0:00:03]} 31. Bb3 {[%emt 0:00:07]} Rf8 {[%emt 0:00:03]} 32. g4 {[%emt 0:00:04][%cal Bg3g4,Bg4g5][%mdl 32]} Kh7 {[%emt 0:11:26]} (32... a5 $16) 33. Bxf7 $18 {[%emt 0:02:29] White is clearly better.} Rc8 {[%emt 0:02:22]} (33... a5 $16 {is a better defense.} 34. g5 b6) 34. g5 {[%emt 0:03:28]} Rc7 {[%emt 0:00:11]} 35. Bd5 {[%emt 0:02:54] Weighted Error Value: White=0.11 (very precise) /Black=0.18 (very precise) .  Mistake:       	White=1     	Black=2      Inaccurate:     	---       	Black=4      OK:         	White=6     	Black=7      Best:        	White=2     	---        Strong:       	White=1     	---} 1-0